[Event "HUN-chT Youth 2019"]
[Site "Budapest"]
[Date "2019.10.28"]
[Round "4.14"]
[White "Lehocz, Jozsef Jr."]
[Black "Szuhorukov, Marcell"]
[Result "1-0"]
[ECO "C02"]
[WhiteElo "1447"]
[BlackElo "1384"]
[Annotator "NA RC"]
[PlyCount "73"]
[EventDate "2019.10.26"]
[EventType "team-tourn"]
[EventCountry "HUN"]
[SourceTitle "playchess.com"]
[Source "ChessBase"]
[SourceQuality "1"]
[TimeControl "5400+30"]

1. e4 {[%emt 0:00:00]} e6 {[%emt 0:00:00]} 2. d4 {[%emt 0:00:00]} d5 {[%emt 0:00:00]} 3. e5 {[%emt 0:00:00]} c5 {[%emt 0:00:00]} 4. c3 {[%emt 0:00:00]} Nc6 {[%emt 0:00:00]} 5. Nf3 {[%emt 0:00:00]} Nge7 {[%emt 0:00:27]} 6. Bb5 {[%emt 0:00:09]} Bd7 {[%emt 0:00:19]} 7. O-O {[%emt 0:05:27]} Nxe5 {[%emt 0:00:06]} 8. Nxe5 {[%emt 0:01:58]} Bxb5 {[%emt 0:00:17]} 9. Re1 {[%emt 0:00:11]} cxd4 {[%emt 0:00:23]} 10. cxd4 {[%emt 0:01:01]} Nf5 {[%emt 0:01:33]} 11. Nc3 {[%emt 0:01:30]} Bd7 {[%emt 0:00:34]} 12. Qf3 {[%emt 0:06:15]} Be7 {[%emt 0:02:01]} 13. Nxf7 {[%emt 0:08:24]} Kxf7 {[%emt 0:01:33]} 14. g4 {[%emt 0:00:08]} g6 {[%emt 0:00:13]} 15. gxf5 {[%emt 0:00:10]} Bf6 {[%emt 0:04:04]} 16. Bg5 {[%emt 0:09:42]} Kg7 {[%emt 0:02:13]} 17. fxe6 {[%emt 0:12:48]} Bxg5 {[%emt 0:00:39]} 18. Qf7+ {[%emt 0:00:25]} Kh6 {[%emt 0:00:26]} 19. exd7 {[%emt 0:01:20]} Rf8 {[%emt 0:03:57]} 20. Qxd5 {[%emt 0:00:23]} Bd2 {[%emt 0:04:55]} 21. Re2 {[%emt 0:06:51]} Rf5 {[%emt 0:06:45]} 22. Re5 {[%emt 0:07:07]} Qg5+ {[%emt 0:01:42]} 23. Qg2 {[%emt 0:00:27]} Rxe5 {[%emt 0:02:07]} 24. dxe5 {[%emt 0:00:46]} Qxe5 {[%emt 0:01:46]} 25. Ne4 {[%emt 0:06:10]} Ba5 {[%emt 0:09:45]} 26. Rd1 {[%emt 0:07:13]} Rd8 {[%emt 0:00:40]} 27. Qh3+ {[%emt 0:00:30]} Kg7 {[%emt 0:00:56]} 28. Qf3 {[%emt 0:10:22]} Bc7 {[%emt 0:02:41]} 29. Ng3 {[%emt 0:01:21]} Qxb2 {[%emt 0:03:44]} 30. Qe4 {[%emt 0:02:14]} Qb5 {[%emt 0:05:35]} 31. Qe7+ {[%emt 0:00:07]} Kh6 {[%emt 0:00:57]} 32. Ne4 {[%emt 0:01:58]} Qh5 {[%emt 0:01:44]} 33. Rd3 {[%emt 0:03:49]} Qxh2+ {[%emt 0:00:38]} 34. Kf1 {[%emt 0:00:02]} Qh1+ {[%emt 0:00:52]} 35. Ke2 {[%emt 0:00:02]} Qh5+ {[%emt 0:00:33]} 36. Kf1 {[%emt 0:00:57]} Qe5 {[%emt 0:02:11]} 37. Rh3+ {[%emt 0:00:13]} 1-0

[Event "HUN-chT Youth 2019"]
[Site "Budapest"]
[Date "2019.10.28"]
[Round "4.15"]
[White "Meszaros, Jazmin"]
[Black "Kellermann, Botond"]
[Result "0-1"]
[ECO "B18"]
[WhiteElo "1171"]
[BlackElo "1274"]
[Annotator "NA RC"]
[PlyCount "84"]
[EventDate "2019.10.26"]
[EventType "team-tourn"]
[EventCountry "HUN"]
[SourceTitle "playchess.com"]
[Source "ChessBase"]
[SourceQuality "1"]
[TimeControl "5400+30"]

1. e4 {[%emt 0:00:00]} c6 {[%emt 0:00:00]} 2. d4 {[%emt 0:00:29]} d5 {[%emt 0:00:00]} 3. Nc3 {[%emt 0:00:33]} dxe4 {[%emt 0:00:17]} 4. Nxe4 {[%emt 0:00:23]} Bf5 {[%emt 0:00:14]} 5. Bd3 {[%emt 0:00:47]} Qxd4 {[%emt 0:04:23]} 6. Be3 {[%emt 0:00:58]} Qd8 {[%emt 0:01:26]} 7. Qe2 {[%emt 0:01:38]} Bxe4 {[%emt 0:00:18]} 8. Bxe4 {[%emt 0:00:17]} Nf6 {[%emt 0:00:34]} 9. Bd3 {[%emt 0:00:30]} Nbd7 {[%emt 0:03:33]} 10. Nf3 {[%emt 0:00:26]} g6 {[%emt 0:01:36]} 11. O-O {[%emt 0:00:24]} Bg7 {[%emt 0:00:35]} 12. Qd2 {[%emt 0:00:54]} O-O {[%emt 0:01:11]} 13. Bh6 {[%emt 0:01:26]} Ng4 {[%emt 0:06:10]} 14. Bxg7 {[%emt 0:00:33]} Kxg7 {[%emt 0:00:08]} 15. Qb4 {[%emt 0:02:05]} Ngf6 {[%emt 0:00:29]} 16. Qxb7 {[%emt 0:00:48]} Qc8 {[%emt 0:02:16]} 17. Qb4 {[%emt 0:02:02]} Nd5 {[%emt 0:00:31]} 18. Qd4+ {[%emt 0:00:38]} Kg8 {[%emt 0:00:31]} 19. Qh4 {[%emt 0:00:32]} Rb8 {[%emt 0:01:51]} 20. Ng5 {[%emt 0:00:35]} N7f6 {[%emt 0:00:11]} 21. Rab1 {[%emt 0:02:10]} Qg4 {[%emt 0:01:53]} 22. Qh6 {[%emt 0:01:31]} Qh5 {[%emt 0:03:30]} 23. Qxh5 {[%emt 0:00:23]} Nxh5 {[%emt 0:00:09]} 24. Rfe1 {[%emt 0:01:00]} Rb6 {[%emt 0:01:02]} 25. Re4 {[%emt 0:00:43]} Nc3 {[%emt 0:00:42]} 26. Rbe1 {[%emt 0:01:15]} Nxe4 {[%emt 0:02:02]} 27. Rxe4 {[%emt 0:00:38]} Rxb2 {[%emt 0:01:01]} 28. Rxe7 {[%emt 0:01:14]} h6 {[%emt 0:01:59]} 29. Nf3 {[%emt 0:00:33]} Rfb8 {[%emt 0:00:32]} 30. Ne5 {[%emt 0:00:41]} Nf4 {[%emt 0:00:38]} 31. Bf1 {[%emt 0:00:20]} Rxc2 {[%emt 0:02:36]} 32. Nxf7 Rb1 {[%emt 0:02:45]} 33. Nxh6+ {[%emt 0:03:01]} Kh8 {[%emt 0:00:15]} 34. Nf7+ {[%emt 0:00:46]} Kh7 {[%emt 0:00:20]} 35. Ng5+ {[%emt 0:00:49]} Kh6 {[%emt 0:00:56]} 36. Nf7+ {[%emt 0:00:27]} Kg7 {[%emt 0:00:17]} 37. Ng5+ {[%emt 0:00:38]} Kf6 {[%emt 0:00:09]} 38. Rf7+ {[%emt 0:01:34]} Kxg5 39. h4+ Kg4 {[%emt 0:02:23]} 40. f3+ {[%emt 0:01:17]} Kg3 {[%emt 0:00:15]} 41. Rf5 {[%emt 0:00:56]} Rxf1+ {[%emt 0:00:32]} 42. Kxf1 {[%emt 0:00:18]} Rc1# {[%emt 0:00:10]} 0-1

[Event "HUN-chT Youth 2019"]
[Site "Budapest"]
[Date "2019.10.28"]
[Round "4.16"]
[White "Megyaszai, Balazs"]
[Black "Kiss, Eniko"]
[Result "1/2-1/2"]
[ECO "C01"]
[WhiteElo "1894"]
[BlackElo "1703"]
[Annotator "NA RC"]
[PlyCount "64"]
[EventDate "2019.10.26"]
[EventType "team-tourn"]
[EventCountry "HUN"]
[SourceTitle "playchess.com"]
[Source "ChessBase"]
[SourceQuality "1"]
[TimeControl "5400+30"]

{[%evp 8,48,19,7,8,0,5,0,6,8,15,10,17,-6,0,-1,32767,-40,-29,32767,-42,-35,32767,-39,-37,-54,32767,-50,32767,-55,-59,-53,32767,32767,-75,-112,-116,-161,32767,-168,32767,-26,-33]} 1. e4 {[%emt 0:00:00]} e6 {[%emt 0:00:00]} 2. d4 {[%emt 0:00:28]} d5 {[%emt 0:00:08]} 3. exd5 {[%emt 0:00:55]} exd5 {[%emt 0:00:44]} 4. Bd3 {[%emt 0:01:10]} Nf6 {[%emt 0:01:46]} 5. Nf3 {[%emt 0:02:22]} Bd6 {[%emt 0:02:43]} 6. O-O {[%emt 0:02:08]} O-O {[%emt 0:00:28]} 7. h3 {[%emt 0:02:22]} h6 {[%emt 0:08:35]} 8. Nc3 {[%emt 0:03:24]} c6 {[%emt 0:07:07] C01: French: Exchange Variation} 9. Ne2 {[%emt 0:03:30]} (9. Ne5 c5 10. Nb5 Be7 11. dxc5 Bxc5 12. Bf4 a6 13. Nc3 Nc6 14. Qd2 d4 15. Ne2 Re8 16. Nxc6 bxc6 {½-½ (37) Fressinet,L (2668)-Bacrot,E (2696) Balagna 2017}) 9... Qc7 {[%emt 0:02:51]} 10. Be3 {[%emt 0:02:14]} Re8 {[%emt 0:01:01]} 11. Qc1 $146 {[%emt 0:01:46]} ({Predecessor:} 11. b3 Be6 12. c4 Qc8 13. Nf4 Bf5 14. Qc2 Bxd3 15. Nxd3 {½-½ (55) Niji,A (2057)-Bernales,C (1998) Vung Tau 2008}) 11... Ne4 {[%emt 0:03:07]} 12. Nd2 {[%emt 0:09:32]} Bf5 {[%emt 0:06:58]} 13. Bxe4 {[%emt 0:05:18]} Bxe4 {[%emt 0:08:30]} 14. Nxe4 {[%emt 0:07:25]} Rxe4 {[%emt 0:01:17]} 15. Qd2 {[%emt 0:03:04]} Nd7 {[%emt 0:03:03]} 16. Nc1 {[%emt 0:07:28]} Rae8 {[%emt 0:04:46]} 17. Nd3 {[%emt 0:03:22]} b6 {[%emt 0:07:19]} 18. b4 {[%emt 0:05:00]} Nf6 {[%emt 0:04:56]} 19. Rfe1 {[%emt 0:05:11]} Qe7 {[%emt 0:10:24]} 20. c3 {[%emt 0:07:16]} Nh5 {[%emt 0:06:31]} 21. Rad1 {[%emt 0:05:21]} f5 {[%emt 0:05:56]} 22. Qc1 {[%emt 0:05:29]} f4 {[%emt 0:05:44]} 23. Bd2 {[%emt 0:03:47]} Qf7 {[%emt 0:03:45]} 24. f3 {[%emt 0:02:47]} Re2 $15 {[%emt 0:01:55]} 25. Ne5 {[%emt 0:02:57]} Bxe5 {[%emt 0:01:05]} 26. dxe5 {[%emt 0:03:16]} R8xe5 {[%emt 0:01:15]} 27. Rxe2 {[%emt 0:00:51]} Rxe2 {[%emt 0:00:05]} 28. Re1 {[%emt 0:00:46]} Ng3 {[%emt 0:01:05]} 29. Kh2 {[%emt 0:00:47]} Rxe1 {[%emt 0:00:50]} 30. Qxe1 {[%emt 0:00:04]} g5 {[%emt 0:00:31]} 31. Bc1 {[%emt 0:00:27]} Kf8 {[%emt 0:00:30]} 32. Qe5 {[%emt 0:01:13]} Kg8 {[%emt 0:00:28]} 1/2-1/2

[Event "HUN-chT Youth 2019"]
[Site "Budapest"]
[Date "2019.10.28"]
[Round "4.17"]
[White "Ivan, Reka Gyongyver"]
[Black "Kocsmar, Akos"]
[Result "0-1"]
[ECO "D00"]
[WhiteElo "1686"]
[BlackElo "1916"]
[Annotator "NA RC"]
[PlyCount "96"]
[EventDate "2019.10.26"]
[EventType "team-tourn"]
[EventCountry "HUN"]
[SourceTitle "playchess.com"]
[Source "ChessBase"]
[SourceQuality "1"]
[TimeControl "5400+30"]

{[%evp 13,96,-27,-10,-10,-13,-7,2,-31,-20,-9,-3,-10,-11,-10,-10,-8,0,-20,-12,-17,0,0,0,-9,0,0,8,-20,33,32767,0,0,32767,0,32767,14,32767,-7,0,-16,32767,-6,32767,-59,-67,-75,-46,-50,32767,32767,-349,-340,-259,32767,32767,32767,32767,32767,0,-239,32767,32767,32767,-466,32767,32767,32767,-669,-711,32767,32767,32767,32767,-1492,32767,32767,-1337,-1181,32767,32767,-2641,-29996,-1059,-29997,-29998]} 1. d4 {[%emt 0:00:00]} d5 {[%emt 0:00:00]} 2. Bf4 {[%emt 0:00:00]} Nf6 {[%emt 0:01:02]} 3. e3 {[%emt 0:00:26]} e6 {[%emt 0:00:13]} 4. Nd2 {[%emt 0:00:23]} Bd6 {[%emt 0:00:06]} 5. Bg3 {[%emt 0:00:07]} c5 {[%emt 0:00:13]} 6. c3 {[%emt 0:00:48]} O-O {[%emt 0:00:20]} 7. Bd3 {[%emt 0:00:37]} Qc7 {[%emt 0:00:15]} 8. Ngf3 {[%emt 0:03:50]} Nbd7 {[%emt 0:01:08]} 9. O-O {[%emt 0:08:07] D02: 1 d4 d5 2 Nf3 sidelines, including 2...Nf6 3 g3 and 2...Nf6 3 Bf4} b6 {[%emt 0:00:45]} 10. e4 {[%emt 0:09:22]} Bxg3 {[%emt 0:00:20]} 11. hxg3 {[%emt 0:00:14]} dxe4 {[%emt 0:00:08]} 12. Nxe4 {[%emt 0:00:20]} Bb7 {[%emt 0:00:01]} 13. Qe2 {[%emt 0:09:19]} Rfd8 {[%emt 0:00:53]} 14. Rad1 {[%emt 0:06:19] [#]} Rac8 $146 {[%emt 0:01:11]} ({Predecessor:} 14... cxd4 15. Nxd4 a6 16. Rfe1 h6 {½-½ (37) So,W (2815)-Carlsen,M (2832) chess.com INT 2017}) 15. Rd2 {[%emt 0:05:38]} c4 {[%emt 0:03:38]} 16. Bc2 {[%emt 0:00:20]} Nd5 {[%emt 0:00:29]} 17. Re1 {[%emt 0:06:47]} h6 {[%emt 0:01:32]} 18. Rdd1 {[%emt 0:01:35]} b5 {[%emt 0:00:29]} 19. Qd2 {[%emt 0:08:57]} a5 {[%emt 0:13:22]} 20. a3 {[%emt 0:06:04]} Qb6 {[%emt 0:02:25]} 21. Qe2 {[%emt 0:06:59]} N5f6 {[%emt 0:03:12]} 22. Nxf6+ {[%emt 0:03:54]} Nxf6 {[%emt 0:00:51]} 23. Ne5 {[%emt 0:01:18]} Bd5 {[%emt 0:01:42]} 24. Qd2 {[%emt 0:03:47]} Rb8 {[%emt 0:02:34] [#]} 25. Rb1 {[%emt 0:00:44]} (25. g4 $1 $16) 25... b4 {[%emt 0:01:05]} 26. Qf4 {[%emt 0:03:56]} Qb7 {[%emt 0:00:49]} 27. g4 {[%emt 0:04:32]} Qe7 {[%emt 0:01:43]} 28. Qg3 {[%emt 0:04:16]} (28. axb4 $11 axb4 29. f3) 28... bxa3 {[%emt 0:00:38]} 29. bxa3 {[%emt 0:01:42]} Rxb1 {[%emt 0:00:10]} 30. Rxb1 {[%emt 0:00:19]} Qxa3 {[%emt 0:00:09]} 31. Qf4 {[%emt 0:01:48]} Qxc3 {[%emt 0:00:14]} 32. Rc1 {[%emt 0:02:07]} Qb4 {[%emt 0:00:09]} 33. g5 {[%emt 0:01:03]} hxg5 {[%emt 0:00:21]} 34. Qxg5 {[%emt 0:00:08]} Qe7 {[%emt 0:00:49]} 35. Qh4 {[%emt 0:00:51] [#]} Qa3 $2 {[%emt 0:03:38] [#]} (35... Re8 $1 $19 36. Ng4 Ra8) 36. Rb1 $2 {[%emt 0:00:45]} (36. Bh7+ $1 $11 {[%mdl 512]} Kf8 (36... Nxh7 37. Qxd8+) 37. Rb1) 36... Qc3 {[%emt 0:00:22]} 37. Rc1 {[%emt 0:00:20]} Qd2 {[%emt 0:00:05]} 38. Bh7+ {[%emt 0:00:31]} Kf8 {[%emt 0:00:07]} 39. Rb1 {[%emt 0:00:35]} c3 {[%emt 0:00:43]} 40. Rf1 {[%emt 0:00:39]} c2 {[%emt 0:00:35]} 41. Nd3 {[%emt 0:00:09]} Rb8 {[%emt 0:00:25]} 42. Nc1 {[%emt 0:00:51]} Rb1 {[%emt 0:00:28]} 43. Bxc2 {[%emt 0:00:27]} Qxc2 {[%emt 0:00:13]} 44. Qf4 {[%emt 0:00:35]} Qe4 {[%emt 0:00:42]} 45. Qg3 {[%emt 0:00:28]} Qg6 {[%emt 0:00:26]} 46. Qh2 {[%emt 0:00:30]} Nh5 {[%emt 0:00:45]} 47. Ne2 {[%emt 0:00:30]} Rxf1+ {[%emt 0:00:08] Back Rank} 48. Kxf1 {[%emt 0:00:03]} Qb1+ {[%emt 0:00:05]} 0-1

[Event "HUN-chT Youth 2019"]
[Site "Budapest"]
[Date "2019.10.28"]
[Round "4.18"]
[White "Kis, Izabella"]
[Black "Kiraly, Lilla Virag"]
[Result "0-1"]
[ECO "B18"]
[WhiteElo "1523"]
[BlackElo "1450"]
[Annotator "NA"]
[PlyCount "131"]
[EventDate "2019.10.26"]
[EventType "team-tourn"]
[EventCountry "HUN"]
[SourceTitle "playchess.com"]
[Source "ChessBase"]
[SourceQuality "1"]
[TimeControl "5400+30"]

1. e4 {[%emt 0:00:00]} c6 {[%emt 0:00:00]} 2. d4 {[%emt 0:00:00]} d5 {[%emt 0:00:00]} 3. Nc3 {[%emt 0:00:00]} dxe4 {[%emt 0:00:00]} 4. Nxe4 {[%emt 0:00:03]} Bf5 {[%emt 0:00:03]} 5. Ng3 {[%emt 0:00:11]} Bg6 {[%emt 0:00:08]} 6. Nf3 {[%emt 0:01:23]} Nd7 {[%emt 0:00:11]} 7. Bd3 {[%emt 0:02:39]} Bxd3 {[%emt 0:00:24]} 8. Qxd3 {[%emt 0:00:14]} e6 {[%emt 0:02:12]} 9. O-O {[%emt 0:04:33]} Ngf6 {[%emt 0:01:10]} 10. Be3 {[%emt 0:02:03]} Bd6 {[%emt 0:00:38]} 11. Ne4 {[%emt 0:03:01]} Nxe4 {[%emt 0:01:14]} 12. Qxe4 {[%emt 0:00:10]} Nf6 {[%emt 0:00:14]} 13. Qd3 {[%emt 0:01:59]} O-O {[%emt 0:01:01]} 14. Rfe1 {[%emt 0:04:59]} Qc7 {[%emt 0:03:57]} 15. h3 {[%emt 0:04:04]} Rfd8 {[%emt 0:06:24]} 16. c3 {[%emt 0:02:25]} h6 {[%emt 0:04:04]} 17. Rad1 {[%emt 0:05:08]} Qa5 {[%emt 0:15:20]} 18. Ra1 {[%emt 0:03:48]} c5 {[%emt 0:00:47]} 19. Qc2 {[%emt 0:01:48]} cxd4 {[%emt 0:12:25]} 20. Bxd4 {[%emt 0:03:43]} Be7 {[%emt 0:07:09]} 21. Ne5 {[%emt 0:04:34]} Qc7 {[%emt 0:06:29]} 22. Qe2 {[%emt 0:03:14]} Bc5 {[%emt 0:06:04]} 23. Nf3 {[%emt 0:03:29]} Bxd4 {[%emt 0:01:23]} 24. Nxd4 {[%emt 0:00:25]} a6 {[%emt 0:03:15]} 25. Nb3 {[%emt 0:04:17]} Rd5 {[%emt 0:06:04]} 26. Rad1 {[%emt 0:03:15]} Rad8 {[%emt 0:03:00]} 27. Rd4 {[%emt 0:03:35]} Rxd4 {[%emt 0:01:33]} 28. Nxd4 {[%emt 0:00:23]} Qc5 {[%emt 0:01:16]} 29. Qe3 {[%emt 0:08:44]} Qd5 {[%emt 0:01:05]} 30. b3 {[%emt 0:02:06]} Qa5 {[%emt 0:01:01]} 31. Ra1 {[%emt 0:08:54]} Nd5 {[%emt 0:00:48]} 32. Qd2 {[%emt 0:04:32]} Qxc3 {[%emt 0:03:57]} 33. Qxc3 {[%emt 0:00:22]} Nxc3 {[%emt 0:00:15]} 34. Nf3 {[%emt 0:00:27]} g6 {[%emt 0:00:50]} 35. Kf1 {[%emt 0:01:09]} Rd7 {[%emt 0:02:09]} 36. Ke1 {[%emt 0:01:09]} Kg7 {[%emt 0:00:47]} 37. a3 {[%emt 0:00:55]} Nb5 {[%emt 0:04:10]} 38. a4 {[%emt 0:00:23]} Nc3 {[%emt 0:03:56]} 39. Rc1 {[%emt 0:01:43]} Nd5 {[%emt 0:01:59]} 40. Ke2 {[%emt 0:01:06]} Nf4+ {[%emt 0:00:32]} 41. Kf1 {[%emt 0:00:14]} Rd3 {[%emt 0:00:53]} 42. Rb1 {[%emt 0:01:15]} Kf6 {[%emt 0:00:49]} 43. Ne1 {[%emt 0:03:03]} Rc3 {[%emt 0:00:53]} 44. f3 {[%emt 0:01:02]} Re3 {[%emt 0:00:50]} 45. Rb2 {[%emt 0:00:22]} Rc3 {[%emt 0:00:22]} 46. Kf2 {[%emt 0:00:46]} Nd5 {[%emt 0:00:37]} 47. Nc2 {[%emt 0:01:04]} Nf4 {[%emt 0:00:32]} 48. Ne1 {[%emt 0:01:07]} Rc1 {[%emt 0:00:31]} 49. Ke3 {[%emt 0:01:10]} g5 {[%emt 0:00:30]} 50. Nd3 {[%emt 0:01:04]} Rc3 {[%emt 0:00:20]} 51. Ke4 {[%emt 0:01:35]} Nxd3 {[%emt 0:00:39]} 52. Kd4 {[%emt 0:00:30]} Nxb2 {[%emt 0:00:23]} 53. Kxc3 {[%emt 0:00:09]} Nd1+ {[%emt 0:00:34]} 54. Kd2 {[%emt 0:00:13]} Nf2 {[%emt 0:00:12]} 55. Ke2 {[%emt 0:00:30]} Nxh3 {[%emt 0:00:23]} 56. gxh3 {[%emt 0:00:09]} Kf5 {[%emt 0:00:14]} 57. Ke3 {[%emt 0:00:14]} Ke5 {[%emt 0:00:08]} 58. b4 {[%emt 0:00:14]} b5 {[%emt 0:00:31]} 59. axb5 {[%emt 0:00:46]} axb5 {[%emt 0:00:06]} 60. Kd3 {[%emt 0:00:24]} f5 {[%emt 0:00:22]} 61. Ke3 {[%emt 0:00:21]} h5 {[%emt 0:00:20]} 62. Kd3 {[%emt 0:00:56]} g4 {[%emt 0:00:25]} 63. fxg4 {[%emt 0:00:37]} fxg4 {[%emt 0:00:20]} 64. h4 {[%emt 0:00:39]} Kf4 {[%emt 0:00:43]} 65. Ke2 {[%emt 0:00:19]} g3 {[%emt 0:00:16]} 66. Kf1 {[%emt 0:00:12]} 0-1

[Event "HUN-chT Youth 2019"]
[Site "Budapest"]
[Date "2019.10.28"]
[Round "4.22"]
[White "Kovacsy, Barnabas"]
[Black "Sulyok, Eszter"]
[Result "0-1"]
[ECO "B42"]
[WhiteElo "2093"]
[BlackElo "1893"]
[Annotator "NA RC"]
[PlyCount "88"]
[EventDate "2019.10.26"]
[EventType "team-tourn"]
[EventCountry "HUN"]
[SourceTitle "playchess.com"]
[Source "ChessBase"]
[SourceQuality "1"]
[TimeControl "5400+30"]

{[%evp 11,78,34,38,42,53,37,47,37,42,24,67,48,46,41,54,48,47,43,29,19,51,0,0,15,51,54,32767,205,209,213,208,49,57,-20,-17,32767,-33,-109,-110,-237,-163,-244,32767,-287,32767,-319,-358,32767,-289,32767,32767,32767,32767,32767,-213,-220,32767,32767,-242,-675,-702,-908,32767,32767,-29987,-29990,-1584,32767,-1158]} 1. e4 {[%emt 0:00:00]} c5 {[%emt 0:00:00]} 2. Nf3 {[%emt 0:00:00]} e6 {[%emt 0:00:00]} 3. d4 {[%emt 0:00:00]} cxd4 {[%emt 0:00:00]} 4. Nxd4 {[%emt 0:00:00]} a6 {[%emt 0:00:00]} 5. Bd3 {[%emt 0:00:00]} Nf6 {[%emt 0:00:00]} 6. O-O {[%emt 0:00:06]} Qc7 {[%emt 0:00:28]} 7. Qe2 {[%emt 0:00:04]} d6 {[%emt 0:00:11]} 8. f4 {[%emt 0:00:03]} Nbd7 {[%emt 0:00:12]} 9. c4 {[%emt 0:00:12]} Be7 {[%emt 0:00:06]} 10. b3 {[%emt 0:00:16]} b6 {[%emt 0:03:58]} 11. Bb2 {[%emt 0:00:33]} Bb7 {[%emt 0:00:19]} 12. Nc3 {[%emt 0:00:11]} O-O {[%emt 0:00:57]} 13. Rae1 {[%emt 0:00:18]} g6 {[%emt 0:06:27] B42: Sicilian: Kan Variation: 5 Bd3} (13... Rad8 14. f5 Nc5 15. fxe6 fxe6 16. Bc2 e5 17. Nf5 g6 18. Nxe7+ Qxe7 19. Nd5 Nxd5 20. exd5 a5 21. a3 b5 22. cxb5 Bxd5 23. Qd2 Qe6 {½-½ (23) Navara,D (2691)-Movsesian,S (2705) Sibenik 2012}) 14. Kh1 {[%emt 0:00:24]} Rfe8 {[%emt 0:01:19]} 15. Bb1 {[%emt 0:00:35]} Bf8 {[%emt 0:01:09]} 16. Nf3 $146 {[%emt 0:01:47]} ({Predecessor:} 16. e5 Nh5 17. Qe3 dxe5 18. fxe5 Bg7 19. Ne4 Nxe5 20. Ng5 Ng4 21. Qh3 Ngf6 22. Ndf3 Nf4 23. Qh4 h6 24. Nxf7 {0-1 (24) Peleshev,L (2269)-Neiksans,A (2596) Liepaja 2015}) 16... Bg7 {[%emt 0:01:25]} 17. Ng5 {[%emt 0:02:33]} h6 {[%emt 0:02:57]} 18. Nxf7 {[%emt 0:13:34]} e5 {[%emt 0:08:03]} 19. fxe5 {[%emt 0:02:55] Discovered Attack} dxe5 {[%emt 0:02:08]} 20. Nd5 {[%emt 0:03:43]} Bxd5 {[%emt 0:01:24] [#]} 21. exd5 {[%emt 0:00:19]} (21. Nxh6+ $1 $18 {[%mdl 512]} Bxh6 22. exd5) 21... Kxf7 {[%emt 0:01:03]} 22. Qc2 {[%emt 0:09:13]} (22. Qe4 $14) 22... Nf8 {[%emt 0:02:07]} 23. Ba3 {[%emt 0:00:23]} Kg8 {[%emt 0:09:39]} 24. Re3 {[%emt 0:11:18]} (24. Bxf8 $1 $11 {remains equal.} Rxf8 25. Qxg6) 24... e4 {[%emt 0:04:41]} 25. Rg3 {[%emt 0:01:28]} (25. Qe2 $17) 25... g5 {[%emt 0:03:13]} 26. d6 {[%emt 0:05:16]} (26. Re3 $17 {keeps fighting.}) 26... Qd7 {[%emt 0:01:17]} 27. Qe2 {[%emt 0:03:14]} Ng6 {[%emt 0:03:56]} 28. Bb2 {[%emt 0:08:42]} Nf4 {[%emt 0:03:24]} ({Don't take} 28... Qxd6 29. Bxf6 Nf4 30. Qc2) 29. Qd2 N4h5 {[%emt 0:04:08]} 30. Rh3 {[%emt 0:05:30]} Re6 {[%emt 0:04:47]} 31. Ba3 {[%emt 0:09:19]} Nf4 {[%emt 0:01:35]} 32. Rg3 {[%emt 0:02:23]} Ne8 {[%emt 0:02:45]} (32... Rae8 $142 33. Re1 {[#]} Nd3 $1 {[%mdl 512]}) 33. Re3 {[%emt 0:02:09]} Nf6 {[%emt 0:08:43]} 34. g3 {[%emt 0:02:51]} Ng6 {[%emt 0:01:42]} 35. Rxe4 $2 {[%emt 0:04:08]} (35. c5) 35... Qc6 {[%emt 0:04:23] Pin} (35... Rxe4 $2 36. Bxe4 Nxe4 37. Qd5+ Kh7 38. Qxe4 $17) 36. Rxf6 {[%emt 0:03:05]} Rxe4 {[%emt 0:00:39]} 37. Rf3 {[%emt 0:01:23]} Rd4 {[%emt 0:01:46]} 38. Qe2 {[%emt 0:00:46]} Ne5 {[%emt 0:00:38]} (38... Re8 $142 39. Qf1 {[#]} Re1 $1 {[%mdl 576] Deflection} 40. Qxe1 Qxf3+ 41. Kg1 Rd1 $1 {[%mdl 512]} 42. Qxd1 Qxd1+ 43. Kf2 Bd4+ 44. Kg2 Qe2+ 45. Kh3 g4#) 39. Kg2 {[%emt 0:01:21]} Qxf3+ $19 {[%emt 0:01:44]} (39... Nxf3 $142 40. Bc1 Nd2+ 41. Kg1 Nxb1 42. a3 Nc3 43. Qe6+ Kh8 44. Kf2 Rf8+ 45. Bf4 Rd2+ 46. Ke3 Qg2 47. Qxh6+ Bxh6 48. Be5+ Kg8 49. Bxc3 g4#) 40. Qxf3 {[%emt 0:00:17]} Nxf3 {[%emt 0:00:03]} 41. Kxf3 {[%emt 0:00:09]} Bf8 {[%emt 0:00:49]} 42. Be4 {[%emt 0:00:22]} Rd8 {[%emt 0:03:00]} 43. Bb2 {[%emt 0:00:54]} R4xd6 {[%emt 0:00:27]} 44. b4 {[%emt 0:00:19]} Bg7 {[%emt 0:00:55]} 0-1

[Event "HUN-chT Youth 2019"]
[Site "Budapest"]
[Date "2019.10.28"]
[Round "4.23"]
[White "Szabo, Miklos"]
[Black "Koltai, Dora"]
[Result "0-1"]
[ECO "C42"]
[WhiteElo "1796"]
[BlackElo "1845"]
[Annotator "NA RC"]
[PlyCount "52"]
[EventDate "2019.10.26"]
[EventType "team-tourn"]
[EventCountry "HUN"]
[SourceTitle "playchess.com"]
[Source "ChessBase"]
[SourceQuality "1"]
[TimeControl "5400+30"]

{[%evp 8,45,47,33,37,32767,32767,-13,-10,-10,1,-80,-34,-79,-41,-223,-110,-199,32767,-96,32767,-35,32767,-75,-48,32767,32767,-56,32767,-54,-44,-54,-20,32767,32767,-289,32767,32767,32767,-1543]} 1. e4 {[%emt 0:00:19]} e5 {[%emt 0:00:00]} 2. Nf3 {[%emt 0:00:07]} Nf6 {[%emt 0:00:00]} 3. Nxe5 {[%emt 0:00:11]} d6 {[%emt 0:00:05]} 4. Nf3 {[%emt 0:00:01]} Nxe4 {[%emt 0:00:07]} 5. d4 {[%emt 0:00:29]} d5 {[%emt 0:00:22]} 6. Bd3 {[%emt 0:00:42]} Nc6 {[%emt 0:00:22]} 7. Bf4 {[%emt 0:01:51] C42: Petroff Defence: 3 Nxe5 and unusual White 3rd moves} (7. O-O Be7 8. Nbd2 Nd6 9. c3 Bf5 10. Be2 O-O 11. Re1 Re8 12. Qb3 Be6 13. Bd3 Bf6 14. Nf1 g6 15. Bf4 Qd7 16. Ne3 {½-½ (67) Dominguez Perez,L (2750)-Bu,X (2729) Hengshui 2019}) 7... Bd6 {[%emt 0:06:50]} 8. Bxd6 {[%emt 0:02:55]} Qxd6 {[%emt 0:00:53]} 9. h3 $146 {[%emt 0:01:53]} (9. Nbd2 $11 {keeps the balance.}) ({Predecessor:} 9. O-O O-O 10. c4 Bg4 11. Be2 dxc4 12. Qc2 Nf6 13. Rd1 Bxf3 14. Bxf3 Nxd4 {½-½ (46) Goebel,C (1885)-Kuegel,T (1918) Willingen 2009}) 9... O-O {[%emt 0:06:24]} 10. Nbd2 {[%emt 0:09:32]} (10. O-O $1 $11 {keeps the balance.}) 10... Qg6 {[%emt 0:17:43]} 11. g4 $2 {[%emt 0:00:47]} ({Better is} 11. Qe2 $15) 11... Re8 {[%emt 0:09:04]} (11... Qh6 $19 12. Ne5 Nxe5 13. Bxe4 dxe4 14. dxe5 Rd8) 12. Be2 {[%emt 0:02:10]} (12. Qe2 $17 {might work better.}) 12... Nb4 {[%emt 0:13:05]} 13. a3 {[%emt 0:09:31]} (13. c3 $1 $11 Nc6 14. Nxe4 dxe4 15. Nh4) 13... Nxd2 {[%emt 0:02:18]} 14. Kxd2 {[%emt 0:00:26]} Nc6 {[%emt 0:03:53]} 15. c3 {[%emt 0:06:20]} Bd7 {[%emt 0:02:33]} 16. b3 {[%emt 0:12:10]} Re7 {[%emt 0:04:43]} 17. Bd3 {[%emt 0:01:47]} Qf6 {[%emt 0:01:28]} 18. Kc2 {[%emt 0:04:14]} Rae8 {[%emt 0:02:18]} 19. Kb2 {[%emt 0:06:43]} Na5 {[%emt 0:03:40]} 20. Rf1 {[%emt 0:06:35]} Qb6 {[%emt 0:02:57]} 21. Ne5 $2 {[%emt 0:03:13]} (21. a4 $15) 21... Ba4 {[%emt 0:02:55]} 22. Bc2 {[%emt 0:01:47]} f6 {[%emt 0:02:34]} 23. Nf3 $19 {[%emt 0:09:03]} (23. Qd3 g6 24. b4 Bxc2 25. Kxc2 fxe5 26. bxa5 Qxa5 27. Rfe1) 23... Bxb3 {[%emt 0:05:54]} 24. Nd2 {[%emt 0:07:52]} Bc4+ {[%emt 0:02:01]} 25. Kc1 {[%emt 0:00:01]} Bxf1 {[%emt 0:00:27]} 26. Nxf1 {[%emt 0:00:00]} Re1 {[%emt 0:00:29]} 0-1